bitfinex/quotes_SOLUSD_20251119
["timestamp","ask_amount","ask_price","bid_price","bid_amount"]
[1763593138113,0.1,135.82,135.78,62.77]
[1763593138425,0.1,135.82,135.78,65.72017885]
[1763593138631,0.1,135.82,135.79,0.67]
[1763593138930,0.1,135.82,135.8,1.74]
[1763593139314,0.1,135.82,135.81,0.67]
[1763593144204,0.82,135.82,135.77,0.67]
[1763593144514,0.82,135.82,135.78,1.74]
[1763593144713,0.82,135.82,135.74,0.67]
[1763593144933,18.12096,135.8,135.71,0.67]
[1763593145241,18.12096,135.76,135.72,1.74]
[1763593145611,0.72,135.75,135.72,1.74]
[1763593146213,0.72,135.78,135.73,0.67]
[1763593147020,18.84096,135.78,135.73,0.67]
[1763593147409,0.72,135.77,135.73,0.67]
[1763593148542,18.12096,135.8,135.73,0.67]
[1763593148714,0.72,135.79,135.73,0.67]
[1763593149425,5.65245371,135.79,135.73,0.67]
[1763593149817,18.12096,135.8,135.73,0.67]
[1763593149818,0.72,135.78,135.73,0.67]
[1763593151350,9.78882769,135.77,135.7,0.67]
[1763593151640,27.90978769,135.77,135.73,1.74]
[1763593151818,0.72,135.76,135.73,1.74]
[1763593152333,18.84096,135.77,135.73,2.41]
[1763593152539,18.12096,135.78,135.73,2.41]
[1763593152736,0.72,135.76,135.73,2.41]
[1763593154649,0.72,135.77,135.74,0.67]
[1763593154856,0.72,135.78,135.74,0.67]
[1763593156547,18.12096,135.8,135.74,0.67]
[1763593156847,5.66222497,135.79,135.73,63.84]
[1763593157047,5.66222497,135.79,135.73,62.1]
[1763593157217,0.72,135.78,135.74,1.74]
[1763593157622,5.66222497,135.78,135.74,1.74]
[1763593157833,0.72,135.77,135.74,1.74]
[1763593160625,18.12096,135.78,135.75,0.72]
[1763593160950,0.71,135.81,135.75,0.72]
[1763593161460,5.65544576,135.81,135.75,0.72]
[1763593161663,0.71,135.81,135.75,0.72]
[1763593163028,9.78882769,135.8,135.73,0.72]
[1763593163234,32.85564324,135.8,135.74,1.74]
[1763593163442,5.65585555,135.79,135.74,1.74]
[1763593163846,0.71,135.78,135.74,1.74]
[1763593166545,0.69,135.78,135.74,2.45]
[1763593166768,5.63585555,135.79,135.75,0.71]
[1763593166949,0.69,135.79,135.75,0.71]
[1763593168247,5.63890752,135.8,135.75,0.71]
[1763593168759,4.94890752,135.8,135.75,0.71]
[1763593168938,18.81096,135.81,135.75,0.71]
[1763593169140,4.94916905,135.8,135.75,0.71]
[1763593169749,0.69,135.81,135.75,0.71]
[1763593170158,5.04916905,135.82,135.75,62.81]
[1763593170752,5.73916905,135.82,135.76,0.71]
[1763593170948,5.73916905,135.82,135.77,1.74]
[1763593171346,5.73916905,135.82,135.78,0.71]
[1763593173866,0.69,135.81,135.78,0.71]
[1763593174444,0.69,135.81,135.74,0.71]
[1763593174663,18.12096,135.77,135.73,0.71]
[1763593174848,18.12096,135.77,135.74,1.74]
[1763593175162,0.69,135.76,135.74,1.74]
[1763593176274,18.12096,135.77,135.74,1.74]
[1763593176472,18.81096,135.77,135.74,1.74]
[1763593177945,0.69,135.76,135.74,1.74]
[1763593178666,0.69,135.76,135.68,183.52096]
[1763593178667,5.97062662,135.76,135.71,1.74]
[1763593178977,9.78882769,135.75,135.71,1.74]
[1763593179180,5.28062662,135.74,135.71,1.74]
[1763593179384,5.97062662,135.74,135.71,1.74]
[1763593179675,0.69,135.73,135.71,1.74]
[1763593180074,18.12096,135.72,135.71,1.74]
[1763593180482,0.69,135.73,135.71,1.74]
[1763593181982,18.12096,135.74,135.71,1.74]
[1763593182280,18.81096,135.75,135.71,2.45]
[1763593182587,0.69,135.75,135.71,1.74]
[1763593182879,0.69,135.75,135.72,0.71]
[1763593183079,0.69,135.75,135.71,2.45]
[1763593183255,5.96708446,135.75,135.71,2.45]
[1763593183675,5.96708446,135.75,135.72,0.71]
[1763593183863,5.27708446,135.75,135.72,0.71]
[1763593184362,18.81096,135.76,135.72,0.71]
[1763593184563,0.69,135.78,135.72,0.71]
[1763593184764,8.06019667,135.78,135.72,0.71]
[1763593184981,26.18115667,135.78,135.72,0.71]
[1763593185280,10.2241233,135.77,135.72,0.71]
[1763593185483,4.94645395,135.77,135.72,0.71]
[1763593185686,26.18115667,135.78,135.72,0.71]
[1763593187187,10.2309651,135.77,135.72,0.71]
[1763593187367,10.2309651,135.77,135.69,0.71]
[1763593187368,18.12096,135.73,135.69,0.71]
[1763593187690,4.9525063,135.72,135.69,0.71]
[1763593187891,18.12096,135.74,135.69,0.71]
[1763593188265,10.24076469,135.73,135.69,0.71]
[1763593188462,4.95482617,135.73,135.69,0.71]
[1763593191867,0.66,135.72,135.68,0.72]
[1763593192679,5.61482617,135.73,135.68,62.82]
[1763593193062,4.95482617,135.73,135.69,0.72]
[1763593194967,18.12096,135.74,135.69,0.72]
[1763593195166,18.78096,135.74,135.69,0.72]
[1763593198793,18.78096,135.74,135.69,62.82]
[1763593199095,18.12096,135.74,135.69,62.82]
[1763593199295,18.12096,135.74,135.7,2.46]
[1763593199589,18.78096,135.74,135.7,2.46]
[1763593199790,18.78096,135.74,135.71,0.72]
[1763593200268,0.66,135.73,135.69,0.72]
[1763593200670,18.12096,135.74,135.7,1.74]
[1763593201299,18.12096,135.74,135.71,0.72]
[1763593201477,18.12096,135.73,135.71,0.72]
[1763593202587,0.66,135.75,135.71,0.72]
[1763593202990,18.12096,135.74,135.71,0.72]
[1763593204673,0.66,135.75,135.72,1.74]
[1763593204879,18.12096,135.74,135.72,1.74]
[1763593205081,18.12096,135.74,135.73,0.72]
[1763593205282,0.66,135.77,135.73,0.72]
[1763593205481,4.95096882,135.79,135.73,0.72]
[1763593205695,0.66,135.8,135.73,0.72]
[1763593205980,18.78096,135.79,135.73,0.72]
[1763593206294,4.95096882,135.78,135.74,1.74]
[1763593206683,4.95096882,135.78,135.75,0.72]
[1763593207290,23.07192882,135.78,135.75,0.72]
[1763593207493,18.12096,135.78,135.75,0.72]
[1763593207697,0.76,135.82,135.75,0.72]
[1763593207906,5.71107093,135.82,135.75,0.72]
[1763593208202,23.83203093,135.82,135.75,0.72]
[1763593208392,4.95107093,135.81,135.75,0.72]
[1763593208600,4.95107093,135.81,135.75,8.08638091]
[1763593208897,0.1,135.82,135.75,8.08638091]
[1763593209101,0.1,135.82,135.76,0.72]
[1763593210490,0.1,135.82,135.76,26.20686359]
[1763593211021,0.1,135.82,135.77,0.72]
[1763593211509,0.1,135.82,135.78,1.74]
[1763593211893,0.1,135.82,135.79,0.72]
[1763593212616,0.1,135.82,135.79,8.08414526]
[1763593212801,0.1,135.82,135.8,0.72]
[1763593216190,0.1,135.82,135.81,1.74]
[1763593216632,0.1,135.82,135.81,2.46]
[1763593219416,0.1,135.82,135.81,64.56]
[1763593219606,0.76,135.82,135.81,62.1]
[1763593219800,0.76,135.82,135.81,1.74]
[1763593221099,0.76,135.82,135.77,0.72]
[1763593221416,0.76,135.82,135.78,1.74]
[1763593221824,0.76,135.82,135.78,2.46]
[1763593222519,0.76,135.82,135.76,0.72]
[1763593222825,0.76,135.82,135.79,1.74]
[1763593223899,0.76,135.82,135.76,0.72]
[1763593224101,0.76,135.82,135.77,1.74]
[1763593225415,27.90978769,135.81,135.77,1.74]
[1763593225924,0.7,135.8,135.77,1.74]
[1763593226705,0.7,135.8,135.74,62.76]
[1763593226909,0.7,135.8,135.75,1.74]
[1763593227102,18.12096,135.78,135.76,1.74]
[1763593227521,0.7,135.77,135.76,1.74]
[1763593228014,18.12096,135.78,135.76,1.74]
[1763593228330,18.12096,135.78,135.74,1.74]
[1763593228331,0.7,135.77,135.74,1.74]
[1763593229819,0.7,135.79,135.75,0.66]
[1763593230021,9.78882769,135.78,135.73,2.4]
[1763593230221,10.48882769,135.78,135.73,2.4]
[1763593230434,0.7,135.77,135.73,1.74]
[1763593230915,0.7,135.77,135.72,0.66]
[1763593231118,0.7,135.77,135.73,1.74]
[1763593232824,18.12096,135.73,135.69,0.66]
[1763593233127,18.12096,135.74,135.7,1.74]
[1763593233424,18.12096,135.73,135.69,0.66]
[1763593233803,0.7,135.72,135.69,1.74]
[1763593234405,0.7,135.72,135.66,0.66]
[1763593234607,18.12096,135.7,135.65,0.66]
[1763593234811,18.12096,135.7,135.66,1.74]
[1763593235014,18.12096,135.68,135.66,1.74]
[1763593235311,18.12096,135.68,135.65,1.74]
[1763593235641,0.7,135.67,135.65,1.74]
[1763593235812,18.12096,135.68,135.65,1.74]
[1763593236009,18.82096,135.68,135.65,1.74]
[1763593236902,0.7,135.67,135.65,1.74]
[1763593237522,18.12096,135.68,135.63,0.66]
[1763593237729,18.12096,135.68,135.62,0.2]
[1763593237730,0.7,135.66,135.62,0.2]
[1763593238035,0.7,135.66,135.62,1.94]
[1763593238512,0.7,135.66,135.62,0.2]
[1763593241633,0.7,135.66,135.62,0.86]
[1763593241812,0.7,135.68,135.62,0.86]
[1763593242015,0.7,135.68,135.63,0.66]
[1763593242632,18.12096,135.67,135.63,0.66]
[1763593243216,18.82096,135.69,135.63,0.66]
[1763593243616,0.7,135.68,135.63,0.66]
[1763593245139,0.7,135.68,135.64,1.74]
[1763593245448,18.82096,135.69,135.65,0.66]
[1763593245738,0.7,135.68,135.65,0.66]
[1763593245915,0.7,135.68,135.64,1.74]
[1763593246316,0.7,135.68,135.64,2.4]
[1763593246733,18.82096,135.69,135.65,0.66]
[1763593247047,0.7,135.68,135.64,2.4]
[1763593248417,0.7,135.68,135.62,0.2]
[1763593248418,1.74,135.67,135.62,0.2]
[1763593248621,18.12096,135.64,135.62,0.2]
[1763593248821,18.82096,135.63,135.62,0.2]
[1763593250844,28.60978769,135.63,135.62,0.2]
[1763593255059,18.12096,135.63,135.62,0.2]
[1763593255231,9.78882769,135.65,135.62,0.2]
[1763593255426,18.12096,135.63,135.62,0.2]
[1763593258557,18.84096,135.63,135.62,0.2]
[1763593258931,18.12096,135.63,135.62,0.2]
[1763593259956,28.62978769,135.63,135.62,0.2]
[1763593260853,31.58541631,135.63,135.62,0.2]
[1763593265446,2.95562862,135.63,135.62,0.87]
[1763593265653,18.12096,135.63,135.62,0.87]
[1763593268850,18.12096,135.63,135.62,2.63]
[1763593269452,2.9551919,135.65,135.62,2.63]
[1763593269651,18.12096,135.64,135.63,0.67]
[1763593270354,23.04881516,135.64,135.63,0.67]
[1763593270868,18.12096,135.64,135.63,0.67]
[1763593271064,9.78882769,135.68,135.63,0.67]
[1763593271251,4.92716138,135.67,135.63,0.67]
[1763593271641,2.95453706,135.68,135.63,0.67]
[1763593271868,4.92716138,135.68,135.63,0.67]
[1763593272150,18.12096,135.67,135.63,0.67]
[1763593272337,2.95410066,135.7,135.63,8.04293005]
[1763593272542,4.93391977,135.69,135.63,8.04293005]
[1763593272766,18.12096,135.69,135.64,0.67]
[1763593272949,24.01705339,135.72,135.64,8.04243574]
[1763593272950,14.2282257,135.72,135.64,8.04243574]
[1763593273269,23.05434384,135.71,135.64,8.04243574]
[1763593273471,4.93338384,135.7,135.65,0.67]
[1763593273644,4.93338384,135.69,135.66,1.76]
[1763593273844,4.93338384,135.7,135.66,1.76]
[1763593274062,4.93338384,135.69,135.67,0.67]
[1763593274267,4.93338384,135.71,135.67,0.67]
[1763593274564,4.93338384,135.7,135.67,0.67]
[1763593274755,4.93338384,135.69,135.67,0.67]
[1763593274959,4.93338384,135.71,135.67,0.67]
[1763593275156,4.93338384,135.7,135.67,0.67]
[1763593275461,4.93338384,135.69,135.67,0.67]
[1763593275641,4.93338384,135.71,135.67,0.67]
[1763593275838,4.93338384,135.7,135.67,0.67]
[1763593276043,4.93338384,135.71,135.67,0.67]
[1763593276243,4.93338384,135.7,135.67,0.67]
[1763593276453,23.05434384,135.69,135.62,0.2]
[1763593276661,4.93338384,135.68,135.64,0.67]
[1763593276866,4.93338384,135.67,135.64,0.67]
[1763593277071,4.93338384,135.66,135.64,0.67]
[1763593277372,4.93338384,135.67,135.64,0.67]
[1763593277571,4.93338384,135.66,135.64,0.67]
[1763593277761,4.93338384,135.67,135.64,0.67]
[1763593277960,4.93338384,135.66,135.64,0.67]
[1763593278158,4.93338384,135.67,135.64,0.67]
[1763593278351,4.93338384,135.66,135.64,0.67]
[1763593278555,4.93338384,135.67,135.64,0.67]
[1763593278851,4.93338384,135.66,135.64,0.67]
[1763593279056,4.93338384,135.65,135.64,0.67]
[1763593279274,4.93338384,135.67,135.64,0.67]
[1763593279452,4.93338384,135.66,135.64,0.67]
[1763593279655,4.93338384,135.65,135.64,0.67]
[1763593279854,4.93338384,135.67,135.64,0.67]
[1763593280049,4.93338384,135.66,135.64,0.67]
[1763593280249,4.93338384,135.65,135.64,0.67]
[1763593280449,4.93338384,135.67,135.64,0.67]
[1763593280676,4.93338384,135.66,135.64,0.67]
[1763593280877,18.12096,135.66,135.64,0.67]
[1763593281051,24.30625565,135.69,135.64,0.67]
[1763593281251,4.95593857,135.68,135.64,0.67]
[1763593282555,18.12096,135.69,135.64,0.67]
[1763593283148,4.95605998,135.68,135.65,1.76]
[1763593283352,18.12096,135.69,135.65,1.76]
[1763593283582,18.12096,135.69,135.66,0.67]
[1763593287680,18.12096,135.69,135.67,1.76]
[1763593288065,18.12096,135.69,135.67,2.41]
[1763593289067,18.12096,135.69,135.68,1.76]
[1763593290260,18.83096,135.69,135.66,62.1]
[1763593290460,18.83096,135.69,135.67,1.76]
[1763593290676,18.12096,135.69,135.67,1.76]
[1763593291677,18.83096,135.69,135.67,1.76]
[1763593292680,6.19156738,135.73,135.68,0.65]
[1763593292976,0.71,135.74,135.68,0.65]
[1763593293189,9.78882769,135.73,135.68,0.65]
[1763593293393,9.78882769,135.73,135.67,0.65]
[1763593293561,18.12096,135.7,135.68,1.76]
[1763593294674,18.12096,135.7,135.68,2.41]
[1763593296489,18.12096,135.7,135.69,0.65]
[1763593296987,18.12096,135.7,135.68,2.41]
[1763593298790,18.12096,135.7,135.68,1.76]
[1763593300574,18.12096,135.7,135.68,2.41]
[1763593304574,18.12096,135.7,135.68,1.76]
[1763593304889,18.12096,135.7,135.68,2.41]
[1763593306687,18.12096,135.7,135.69,0.65]
[1763593306906,23.0799782,135.7,135.68,2.41]
[1763593307091,18.12096,135.7,135.68,2.41]
[1763593308001,18.12096,135.7,135.68,1.76]
[1763593310295,18.12096,135.7,135.69,0.72]
[1763593310679,23.08604382,135.7,135.69,0.72]
[1763593311104,23.08604382,135.7,135.68,2.48]
[1763593311307,18.12096,135.7,135.68,1.76]
[1763593311483,18.12096,135.7,135.69,0.72]
[1763593311997,18.12096,135.72,135.69,0.72]
[1763593312179,7.37184974,135.75,135.69,0.72]
[1763593312384,4.96479289,135.74,135.69,0.72]
[1763593312591,18.12096,135.73,135.69,0.72]
[1763593312787,18.12096,135.72,135.69,0.72]
[1763593312983,18.12096,135.72,135.69,62.82]
[1763593313187,18.12096,135.77,135.69,0.72]
[1763593313407,18.12096,135.74,135.7,0.72]
[1763593313617,0.69,135.77,135.7,0.72]
[1763593313792,6.19156738,135.79,135.7,0.72]
[1763593313793,4.96277565,135.78,135.7,0.72]
[1763593313993,4.96277565,135.78,135.71,9.78882769]
[1763593314197,4.96277565,135.79,135.72,1.74]
[1763593314415,18.12096,135.77,135.72,2.46]
[1763593314593,18.12096,135.77,135.73,0.72]
[1763593314799,0.69,135.8,135.73,0.72]
[1763593315102,18.12096,135.77,135.73,0.72]
[1763593315676,18.12096,135.79,135.74,1.74]
[1763593315892,18.12096,135.77,135.74,1.74]
[1763593316098,18.12096,135.77,135.75,0.72]
[1763593316701,18.12096,135.79,135.75,0.72]
[1763593316883,18.12096,135.77,135.75,0.72]
[1763593317309,18.81096,135.77,135.73,0.72]
[1763593317501,18.81096,135.77,135.73,2.46]
[1763593317803,18.12096,135.77,135.73,2.46]
[1763593318004,5.64365107,135.76,135.71,2.48]
[1763593318309,18.12096,135.73,135.67,0.72]
[1763593318507,18.81096,135.73,135.68,1.74]
[1763593318818,18.12096,135.73,135.69,0.72]
[1763593321530,18.12096,135.73,135.67,0.72]
[1763593321531,0.69,135.72,135.67,0.72]
[1763593321827,18.12096,135.71,135.68,2.46]
[1763593322622,18.12096,135.71,135.68,1.74]
[1763593322822,18.12096,135.71,135.68,2.46]
[1763593323006,18.12096,135.71,135.69,0.72]
[1763593325305,0.69,135.79,135.69,0.72]
[1763593325511,4.9553677,135.78,135.69,62.82]
[1763593325819,18.12096,135.76,135.7,8.08919675]
[1763593326017,18.12096,135.76,135.7,70.18919675]
[1763593326220,18.12096,135.76,135.71,0.72]
[1763593326422,18.12096,135.76,135.72,1.76]
[1763593326608,18.12096,135.76,135.73,0.72]
[1763593326799,7.37119546,135.79,135.73,0.72]
[1763593326800,6.19156738,135.81,135.73,0.72]
[1763593326998,0.69,135.79,135.73,0.72]
[1763593327214,18.12096,135.77,135.73,0.72]
[1763593329396,18.81096,135.77,135.74,1.74]
[1763593329815,18.81096,135.77,135.74,2.46]
[1763593330422,18.81096,135.77,135.67,18.12096]
[1763593330423,18.81096,135.76,135.71,0.72]
[1763593330622,18.81096,135.76,135.72,1.76]
[1763593330926,0.69,135.75,135.72,1.76]
[1763593331418,0.69,135.75,135.71,0.72]
[1763593331623,0.69,135.75,135.72,1.76]
[1763593332624,0.69,135.75,135.71,1.76]
[1763593332796,0.69,135.75,135.71,2.48]
[1763593333204,0.69,135.75,135.71,1.76]
[1763593333421,0.69,135.75,135.69,0.72]
[1763593333422,0.69,135.75,135.7,1.76]
[1763593333598,5.64097667,135.75,135.7,1.76]
[1763593334001,18.12096,135.72,135.7,1.76]
[1763593334214,18.12096,135.73,135.7,2.48]
[1763593334525,18.12096,135.73,135.71,0.72]
[1763593334710,0.69,135.75,135.71,0.72]
[1763593334901,18.81096,135.75,135.71,0.72]
[1763593336302,18.12096,135.74,135.71,0.72]
[1763593339718,28.59978769,135.78,135.71,62.82]
[1763593339914,4.9534602,135.77,135.71,62.82]
[1763593340229,10.47882769,135.78,135.72,0.68]
[1763593340434,15.43228789,135.78,135.72,0.68]
[1763593340608,18.12096,135.77,135.72,0.68]
[1763593341102,18.12096,135.76,135.72,0.68]
[1763593341714,18.12096,135.78,135.72,0.68]
[1763593342231,0.78,135.82,135.72,70.14805734]
[1763593342415,0.78,135.82,135.73,17.83606067]
[1763593342621,18.12096,135.8,135.74,1.74]
[1763593342830,18.12096,135.8,135.75,0.68]
[1763593343520,18.12096,135.81,135.75,0.68]
[1763593343720,0.1,135.82,135.75,62.78]
[1763593344042,18.22096,135.82,135.75,62.78]
[1763593344341,18.22096,135.82,135.76,0.68]
[1763593344727,0.1,135.82,135.76,0.68]
[1763593345327,18.22096,135.82,135.76,0.68]
[1763593345523,0.1,135.82,135.76,0.68]
[1763593345942,18.22096,135.82,135.76,0.68]
[1763593346619,0.1,135.82,135.76,8.04592089]
[1763593347025,0.1,135.82,135.77,0.65]
[1763593347226,0.1,135.82,135.78,1.74]
[1763593347545,0.1,135.82,135.81,2.84752952]
[1763593348123,0.1,135.82,135.78,1.74]
[1763593348322,0.1,135.82,135.81,2.84752952]
[1763593349137,0.1,135.82,135.8,3.49752952]
[1763593349917,0.1,135.82,135.81,0.65]
[1763593351040,0.1,135.82,135.81,2.39]
[1763593351823,0.1,135.84,135.81,67.33752952]
[1763593352034,0.1,135.84,135.83,2.84752952]
[1763593352345,0.1,135.84,135.83,3.49752952]
[1763593353050,0.1,135.84,135.83,2.84752952]
[1763593353262,0.1,135.84,135.81,1.74]
[1763593353263,0.1,135.84,135.81,5.23752952]
[1763593353543,0.78,135.84,135.82,1.74]
[1763593353745,3.62752952,135.84,135.82,1.74]
[1763593354144,0.68,135.83,135.82,1.74]
[1763593354748,0.78,135.84,135.82,1.74]
[1763593354942,3.62752952,135.84,135.82,1.74]
[1763593355139,0.78,135.84,135.82,1.74]
[1763593355548,0.1,135.84,135.82,2.39]
[1763593356046,0.1,135.84,135.82,5.23752952]
[1763593356345,0.1,135.84,135.83,3.49752952]
[1763593357650,0.1,135.84,135.83,65.59752952]
[1763593358749,0.1,135.84,135.83,62.75]
[1763593358940,0.1,135.84,135.83,69.52700019]
[1763593361628,0.1,135.84,135.83,86.67797173]
[1763593362958,0.1,135.84,135.83,79.31582788]
[1763593363557,0.1,135.84,135.83,93.45497192]
[1763593363742,0.1,135.84,135.83,94.1911863]
[1763593364349,18.12096,135.9,135.84,10.43882769]
[1763593364562,18.12096,135.9,135.89,6.77700019]
[1763593364737,18.12096,135.9,135.89,8.51700019]
[1763593365132,0.1,135.92,135.89,8.51700019]
[1763593365133,0.1,135.92,135.91,6.77700019]
[1763593365340,0.1,135.92,135.91,7.42700019]
[1763593365533,0.1,135.94,135.92,9.78882769]
[1763593365750,1.53593088,135.99,135.93,8.51700019]
[1763593365935,1.53593088,135.99,135.96,6.77700019]
[1763593366451,0.1,135.98,135.97,1.74]
[1763593366757,18.22096,135.98,135.97,1.74]
[1763593366982,18.22096,135.98,135.95,6.77700019]
[1763593367178,7.45700019,135.97,135.92,6.77700019]
[1763593367467,25.57796019,135.97,135.93,1.74]
[1763593367875,18.12096,135.97,135.93,8.51700019]
[1763593368041,0.1,135.98,135.96,6.77700019]
[1763593368238,0.1,135.98,135.97,8.51700019]
[1763593369850,0.1,135.98,135.97,1.74]
[1763593370053,18.22096,135.98,135.97,1.74]
[1763593370359,9.78882769,135.97,135.9,1.74]
[1763593370546,24.89796019,135.96,135.91,6.77700019]
[1763593371161,18.12096,135.96,135.94,6.77700019]
[1763593371347,18.12096,135.96,135.95,8.51700019]
[1763593371751,18.22096,135.98,135.95,8.51700019]
[1763593373969,18.22096,135.98,135.95,1.74]
[1763593374566,18.22096,135.98,135.94,6.77700019]
[1763593374756,18.12096,135.94,135.86,0.69]
[1763593374957,6.77700019,135.93,135.88,6.77700019]
[1763593375270,7.43700019,135.95,135.9,6.77700019]
[1763593375481,18.12096,135.94,135.91,8.53700019]
[1763593375678,18.12096,135.94,135.92,6.77700019]
[1763593375880,18.12096,135.94,135.88,62.79]
[1763593376060,6.77700019,135.94,135.9,6.77700019]
[1763593376258,18.12096,135.92,135.91,1.76]
[1763593376575,24.89796019,135.93,135.91,1.76]
[1763593376873,6.77700019,135.92,135.87,6.77700019]
[1763593377261,6.77700019,135.92,135.88,1.76]
[1763593377262,7.43700019,135.92,135.88,1.76]
[1763593377957,0.66,135.92,135.88,1.76]
[1763593378475,24.89796019,135.93,135.89,6.77700019]
[1763593378657,18.12096,135.93,135.9,8.53700019]
[1763593379465,18.12096,135.93,135.86,0.69]
[1763593379768,0.66,135.92,135.88,6.77700019]
[1763593380156,18.12096,135.9,135.86,0.69]
[1763593380358,18.12096,135.9,135.83,0.69]
[1763593380556,18.12096,135.9,135.85,6.77700019]
[1763593380557,0.66,135.89,135.85,6.77700019]
[1763593380765,18.12096,135.91,135.88,6.77700019]
[1763593380966,24.89796019,135.92,135.9,6.77700019]
[1763593381181,18.12096,135.92,135.91,6.77700019]
[1763593381357,0.66,135.97,135.91,6.77700019]
[1763593381552,0.66,135.97,135.94,6.77700019]
[1763593382068,7.43700019,135.97,135.93,1.76]
[1763593382261,18.78096,135.96,135.93,1.76]
[1763593382674,18.12096,135.95,135.93,8.53700019]
[1763593386889,18.78096,135.95,135.93,1.76]
[1763593387061,18.12096,135.91,135.85,62.79]
[1763593387265,18.12096,135.91,135.86,13.54332009]
[1763593387266,29.90428009,135.91,135.86,13.54332009]
[1763593387481,0.66,135.96,135.9,11.78332009]
[1763593387678,0.66,135.96,135.86,2.45]
[1763593387679,18.12096,135.94,135.92,11.78332009]
[1763593388470,18.12096,135.95,135.92,11.78332009]
[1763593388792,29.90428009,135.95,135.91,2.45]
[1763593389094,11.78332009,135.94,135.91,1.76]
[1763593389272,18.12096,135.95,135.91,1.76]
[1763593389471,0.1,135.98,135.94,11.78332009]
[1763593389670,0.1,135.98,135.89,18.12096]
[1763593389671,0.1,135.98,135.95,14.23332009]
[1763593389874,0.1,135.98,135.97,11.78332009]
[1763593390074,0.1,135.98,135.97,12.47332009]
[1763593391388,1.53593088,135.99,135.98,9.78882769]
[1763593391591,1.53593088,135.99,135.98,22.26214778]
[1763593392892,1.53593088,135.99,135.98,1.76]
[1763593393393,1.53593088,135.99,135.98,14.23332009]
[1763593395086,1.53593088,135.99,135.95,18.81096]
[1763593395390,1.53593088,135.99,135.97,11.78332009]
[1763593395695,1.53593088,135.99,135.96,2.45]
[1763593395696,1.53593088,135.99,135.98,11.78332009]
[1763593395865,1.53593088,135.99,135.98,21.57214778]
[1763593396067,1.53593088,135.99,135.98,10.47882769]
[1763593396269,1.53593088,135.99,135.98,84.36214778]
[1763593396964,1.53593088,135.99,135.98,1.76]
[1763593400500,2.21593088,135.99,135.96,62.1]
[1763593400699,9.78882769,135.96,135.89,0.69]
[1763593400992,11.78332009,135.93,135.9,1.76]
[1763593401379,12.46332009,135.93,135.9,1.76]
[1763593401770,0.68,135.92,135.9,1.76]
[1763593401969,11.78332009,135.91,135.85,12.47332009]
[1763593402177,29.90428009,135.9,135.86,1.76]
[1763593402376,30.58428009,135.9,135.86,1.76]
[1763593402574,30.58428009,135.9,135.86,2.45]
[1763593402871,18.12096,135.9,135.86,1.76]
[1763593403079,18.12096,135.9,135.87,12.47332009]
[1763593403590,12.46332009,135.93,135.87,12.47332009]